[Event "Early-Titled-Tuesday-Blitz-January-23-2024"]
[Site "Chess.com"]
[Date "2024.01.23"]
[Round "1"]
[White "DenLaz"]
[Black "Giorno"]
[Result "1-0"]
[WhiteElo "3080"]
[BlackElo "2530"]
[TimeControl "180+1"]
[EndTime "8:08:45 PST"]
[Termination "DenLaz won by checkmate"]

1. d4 {[%clk 0:03:00.9]} 1... Nf6 {[%clk 0:02:57.9]} 2. c4 {[%clk 0:03:01.5]}
2... d6 {[%clk 0:02:56.2]} 3. Nf3 {[%clk 0:03:01.8]} 3... Nbd7 {[%clk
0:02:51.2]} 4. g3 {[%clk 0:03:02.4]} 4... e5 {[%clk 0:02:48.2]} 5. Bg2 {[%clk
0:03:03.1]} 5... Be7 {[%clk 0:02:48.3]} 6. O-O {[%clk 0:03:02.8]} 6... O-O
{[%clk 0:02:48.5]} 7. Nc3 {[%clk 0:03:03.5]} 7... c6 {[%clk 0:02:48.4]} 8. e4
{[%clk 0:03:01.9]} 8... Re8 {[%clk 0:02:45.5]} 9. h3 {[%clk 0:03:01.3]} 9... a5
{[%clk 0:02:40.9]} 10. Be3 {[%clk 0:03:00.5]} 10... Qc7 {[%clk 0:02:39]} 11. Rc1
{[%clk 0:02:58.2]} 11... exd4 {[%clk 0:02:31.3]} 12. Nxd4 {[%clk 0:02:57.2]}
12... Ne5 {[%clk 0:02:27.7]} 13. b3 {[%clk 0:02:56]} 13... Ng6 {[%clk
0:02:23.5]} 14. Qd2 {[%clk 0:02:53.6]} 14... Bf8 {[%clk 0:02:20.6]} 15. f4
{[%clk 0:02:50.8]} 15... Bd7 {[%clk 0:02:17.2]} 16. Rfe1 {[%clk 0:02:48.5]}
16... h6 {[%clk 0:02:09.1]} 17. Bf2 {[%clk 0:02:47.1]} 17... Rad8 {[%clk
0:02:02]} 18. Kh1 {[%clk 0:02:37.4]} 18... Bc8 {[%clk 0:02:00.3]} 19. Nc2 {[%clk
0:02:01.2]} 19... Nd7 {[%clk 0:01:38]} 20. g4 {[%clk 0:01:52.7]} 20... Nc5
{[%clk 0:01:32.3]} 21. Bg3 {[%clk 0:01:25.7]} 21... Be7 {[%clk 0:01:27.8]} 22.
Ne3 {[%clk 0:01:19.7]} 22... Bh4 {[%clk 0:01:18.3]} 23. Bxh4 {[%clk 0:01:00.6]}
23... Nxh4 {[%clk 0:01:19.2]} 24. Nf5 {[%clk 0:00:59.8]} 24... Bxf5 {[%clk
0:01:11.7]} 25. exf5 {[%clk 0:00:58.5]} 25... Qd7 {[%clk 0:00:56.8]} 26. Kh2
{[%clk 0:00:39.6]} 26... Rxe1 {[%clk 0:00:52.5]} 27. Rxe1 {[%clk 0:00:38]} 27...
Re8 {[%clk 0:00:47.3]} 28. Bh1 {[%clk 0:00:35.9]} 28... g6 {[%clk 0:00:30.1]}
29. Kg3 {[%clk 0:00:32.1]} 29... Rxe1 {[%clk 0:00:27.8]} 30. Qxe1 {[%clk
0:00:32.2]} 30... g5 {[%clk 0:00:28.7]} 31. Qe3 {[%clk 0:00:27.8]} 31... Qd8
{[%clk 0:00:26.9]} 32. Ne2 {[%clk 0:00:20.2]} 32... Qf6 {[%clk 0:00:26.4]} 33.
Qd4 {[%clk 0:00:19.8]} 33... Qxd4 {[%clk 0:00:19.7]} 34. Nxd4 {[%clk 0:00:20]}
34... Nd3 {[%clk 0:00:20.3]} 35. fxg5 {[%clk 0:00:19.7]} 35... hxg5 {[%clk
0:00:20.4]} 36. Be4 {[%clk 0:00:20]} 36... Nb4 {[%clk 0:00:16.6]} 37. a3 {[%clk
0:00:19.9]} 37... Na6 {[%clk 0:00:16]} 38. Bc2 {[%clk 0:00:19.8]} 38... Kg7
{[%clk 0:00:13.3]} 39. Ne2 {[%clk 0:00:17.2]} 39... Nc5 {[%clk 0:00:11.9]} 40.
b4 {[%clk 0:00:15.4]} 40... axb4 {[%clk 0:00:12.8]} 41. axb4 {[%clk 0:00:16.3]}
41... Na6 {[%clk 0:00:13.2]} 42. b5 {[%clk 0:00:16.3]} 42... Nc7 {[%clk
0:00:09.4]} 43. bxc6 {[%clk 0:00:15.3]} 43... bxc6 {[%clk 0:00:10.3]} 44. Nc3
{[%clk 0:00:15.9]} 44... Na6 {[%clk 0:00:09.5]} 45. Ne4 {[%clk 0:00:15.9]} 45...
Nb4 {[%clk 0:00:08.2]} 46. Bb1 {[%clk 0:00:15.5]} 46... f6 {[%clk 0:00:06.4]}
47. Nxd6 {[%clk 0:00:15.9]} 47... Na6 {[%clk 0:00:05.9]} 48. Be4 {[%clk
0:00:15.4]} 48... c5 {[%clk 0:00:05.4]} 49. Bd5 {[%clk 0:00:14.9]} 49... Kf8
{[%clk 0:00:05.5]} 50. Ne4 {[%clk 0:00:15.1]} 50... Ke7 {[%clk 0:00:05.5]} 51.
Bb7 {[%clk 0:00:15.8]} 51... Nb4 {[%clk 0:00:03.8]} 52. Nxc5 {[%clk 0:00:16.4]}
52... Kd6 {[%clk 0:00:04.1]} 53. Ne4+ {[%clk 0:00:16.8]} 53... Ke5 {[%clk
0:00:04.7]} 54. Nd2 {[%clk 0:00:16.7]} 54... Nd3 {[%clk 0:00:04.9]} 55. Bd5
{[%clk 0:00:14.4]} 55... Nf4 {[%clk 0:00:04.9]} 56. Bb7 {[%clk 0:00:05.8]} 56...
Ne2+ {[%clk 0:00:03.5]} 57. Kh2 {[%clk 0:00:06.5]} 57... Kf4 {[%clk 0:00:01.1]}
58. c5 {[%clk 0:00:06.6]} 58... Nd4 {[%clk 0:00:01.7]} 59. c6 {[%clk 0:00:05.8]}
59... Nb5 {[%clk 0:00:02.3]} 60. Ba6 {[%clk 0:00:03.8]} 60... Nc7 {[%clk
0:00:02.5]} 61. Bf1 {[%clk 0:00:04.2]} 61... Nf3+ {[%clk 0:00:01.5]} 62. Nxf3
{[%clk 0:00:04.7]} 62... Kxf3 {[%clk 0:00:02.4]} 63. Bg2+ {[%clk 0:00:05.6]}
63... Kf2 {[%clk 0:00:02.6]} 64. h4 {[%clk 0:00:04.1]} 64... gxh4 {[%clk
0:00:01.9]} 65. g5 {[%clk 0:00:04.7]} 65... fxg5 {[%clk 0:00:02.6]} 66. f6
{[%clk 0:00:05.3]} 66... g4 {[%clk 0:00:03.1]} 67. f7 {[%clk 0:00:05.9]} 67...
g3+ {[%clk 0:00:03.6]} 68. Kh3 {[%clk 0:00:06.1]} 68... Ne6 {[%clk 0:00:04.3]}
69. c7 {[%clk 0:00:06.4]} 69... Nxc7 {[%clk 0:00:04.5]} 70. f8=Q+ {[%clk
0:00:06.7]} 70... Kg1 {[%clk 0:00:04.3]} 71. Qc5# {[%clk 0:00:07.3]} 1-0

[Event "Early-Titled-Tuesday-Blitz-January-23-2024"]
[Site "Chess.com"]
[Date "2024.01.23"]
[Round "1"]
[White "Kotlyar_K"]
[Black "abhidabhi"]
[Result "0-1"]
[WhiteElo "2502"]
[BlackElo "2934"]
[TimeControl "180+1"]
[EndTime "8:08:48 PST"]
[Termination "abhidabhi won by checkmate"]

1. e4 {[%clk 0:03:00.9]} 1... e6 {[%clk 0:02:56.9]} 2. Nf3 {[%clk 0:03:00.3]}
2... d5 {[%clk 0:02:52.9]} 3. Nc3 {[%clk 0:02:59.6]} 3... Nf6 {[%clk 0:02:52.1]}
4. e5 {[%clk 0:02:59.7]} 4... Nfd7 {[%clk 0:02:52.8]} 5. d4 {[%clk 0:03:00]}
5... c5 {[%clk 0:02:52.3]} 6. dxc5 {[%clk 0:03:00.9]} 6... Nc6 {[%clk
0:02:51.3]} 7. Bf4 {[%clk 0:03:00.2]} 7... Bxc5 {[%clk 0:02:45.5]} 8. Bd3 {[%clk
0:02:59.5]} 8... f6 {[%clk 0:02:40.9]} 9. exf6 {[%clk 0:02:58.6]} 9... Qxf6
{[%clk 0:02:40.5]} 10. Bg3 {[%clk 0:02:51.8]} 10... O-O {[%clk 0:02:38.5]} 11.
O-O {[%clk 0:02:51.1]} 11... h6 {[%clk 0:02:29.3]} 12. Qe2 {[%clk 0:02:38.7]}
12... Nd4 {[%clk 0:02:26.9]} 13. Nxd4 {[%clk 0:02:33.8]} 13... Bxd4 {[%clk
0:02:26.5]} 14. Nb5 {[%clk 0:02:24.6]} 14... Be5 {[%clk 0:02:13.2]} 15. c3
{[%clk 0:01:56.8]} 15... a6 {[%clk 0:01:53.6]} 16. Nd6 {[%clk 0:01:38.2]} 16...
Bxg3 {[%clk 0:01:24.2]} 17. fxg3 {[%clk 0:01:38.1]} 17... Qe7 {[%clk 0:01:20.4]}
18. Nxc8 {[%clk 0:01:37.6]} 18... Raxc8 {[%clk 0:01:19.1]} 19. Rae1 {[%clk
0:01:26.2]} 19... Rxf1+ {[%clk 0:01:02.6]} 20. Rxf1 {[%clk 0:01:13.6]} 20... Rf8
{[%clk 0:01:02.5]} 21. Rxf8+ {[%clk 0:01:05.6]} 21... Kxf8 {[%clk 0:01:02.1]}
22. Qf2+ {[%clk 0:01:02.1]} 22... Nf6 {[%clk 0:00:59.3]} 23. Bg6 {[%clk
0:00:55.5]} 23... e5 {[%clk 0:00:59.3]} 24. Qb6 {[%clk 0:00:51.5]} 24... e4
{[%clk 0:00:49.1]} 25. Qe3 {[%clk 0:00:31.7]} 25... Nd7 {[%clk 0:00:27.4]} 26.
b4 {[%clk 0:00:27.5]} 26... Ne5 {[%clk 0:00:25.5]} 27. Bf5 {[%clk 0:00:26.2]}
27... Qf6 {[%clk 0:00:23.4]} 28. Bc8 {[%clk 0:00:20.8]} 28... b6 {[%clk
0:00:07.4]} 29. Bxa6 {[%clk 0:00:19.8]} 29... Ng4 {[%clk 0:00:07.5]} 30. Qe2
{[%clk 0:00:18.5]} 30... Qg5 {[%clk 0:00:06.7]} 31. h3 {[%clk 0:00:17.9]} 31...
Ne5 {[%clk 0:00:06.4]} 32. Kh2 {[%clk 0:00:17.7]} 32... e3 {[%clk 0:00:04.4]}
33. Bd3 {[%clk 0:00:16.9]} 33... Nxd3 {[%clk 0:00:03.7]} 34. Qxd3 {[%clk
0:00:17.8]} 34... Qe5 {[%clk 0:00:04.2]} 35. Qe2 {[%clk 0:00:18]} 35... Qxc3
{[%clk 0:00:04.3]} 36. b5 {[%clk 0:00:17.3]} 36... Ke7 {[%clk 0:00:03.6]} 37. a4
{[%clk 0:00:17.2]} 37... d4 {[%clk 0:00:04]} 38. Qh5 {[%clk 0:00:17.2]} 38... d3
{[%clk 0:00:03.8]} 39. Qf5 {[%clk 0:00:15.2]} 39... Qf6 {[%clk 0:00:03.9]} 40.
Qe4+ {[%clk 0:00:15.4]} 40... Qe6 {[%clk 0:00:04.2]} 41. Qh4+ {[%clk 0:00:14.5]}
41... g5 {[%clk 0:00:03.6]} 42. Qb4+ {[%clk 0:00:15.2]} 42... Kf7 {[%clk
0:00:04.1]} 43. Qb1 {[%clk 0:00:11.6]} 43... e2 {[%clk 0:00:04.3]} 44. Qe1
{[%clk 0:00:11.3]} 44... d2 {[%clk 0:00:04.7]} 45. Qxd2 {[%clk 0:00:11.6]} 45...
e1=Q {[%clk 0:00:04.5]} 46. Qc2 {[%clk 0:00:11.2]} 46... Q1e4 {[%clk 0:00:03.3]}
47. Qc7+ {[%clk 0:00:11.1]} 47... Kg6 {[%clk 0:00:03]} 48. Qd8 {[%clk
0:00:10.1]} 48... Q4e5 {[%clk 0:00:02.8]} 49. Qd2 {[%clk 0:00:09.7]} 49... Q6d6
{[%clk 0:00:02.8]} 50. Qf2 {[%clk 0:00:09.8]} 50... h5 {[%clk 0:00:03.1]} 51. h4
{[%clk 0:00:07.9]} 51... gxh4 {[%clk 0:00:03.3]} 52. Kh1 {[%clk 0:00:08]} 52...
hxg3 {[%clk 0:00:02.9]} 53. Qc2+ {[%clk 0:00:08.4]} 53... Qf5 {[%clk 0:00:02.7]}
54. Qc1 {[%clk 0:00:08.9]} 54... Qff4 {[%clk 0:00:02]} 55. Qb1+ {[%clk
0:00:08.7]} 55... Kg5 {[%clk 0:00:02.5]} 56. Qe1 {[%clk 0:00:08.7]} 56... Qh4+
{[%clk 0:00:02.8]} 57. Kg1 {[%clk 0:00:09.2]} 57... Qdd4+ {[%clk 0:00:03.2]} 58.
Kf1 {[%clk 0:00:09.3]} 58... Qh1+ {[%clk 0:00:03.5]} 59. Ke2 {[%clk 0:00:10.2]}
59... Qxg2+ {[%clk 0:00:04.4]} 60. Qf2 {[%clk 0:00:10.2]} 60... Qgxf2# {[%clk
0:00:05.3]} 0-1

[Event "Early-Titled-Tuesday-Blitz-January-23-2024"]
[Site "Chess.com"]
[Date "2024.01.23"]
[Round "1"]
[White "ilya2700"]
[Black "Gennady_Kozlov"]
[Result "0-1"]
[WhiteElo "2339"]
[BlackElo "2648"]
[TimeControl "180+1"]
[EndTime "8:08:50 PST"]
[Termination "Gennady_Kozlov won by resignation"]

1. d4 {[%clk 0:03:00]} 1... e6 {[%clk 0:02:55.7]} 2. c4 {[%clk 0:02:59.4]} 2...
b6 {[%clk 0:02:54.9]} 3. Nf3 {[%clk 0:02:59.4]} 3... Bb7 {[%clk 0:02:54.3]} 4.
g3 {[%clk 0:02:59.6]} 4... f5 {[%clk 0:02:53.7]} 5. Bg2 {[%clk 0:02:59.6]} 5...
Nf6 {[%clk 0:02:53.9]} 6. O-O {[%clk 0:02:59.7]} 6... Be7 {[%clk 0:02:53.9]} 7.
Nc3 {[%clk 0:02:59.7]} 7... Ne4 {[%clk 0:02:53.2]} 8. Nd2 {[%clk 0:02:57.9]}
8... Nxc3 {[%clk 0:02:52.4]} 9. bxc3 {[%clk 0:02:57.9]} 9... Bxg2 {[%clk
0:02:52.8]} 10. Kxg2 {[%clk 0:02:57.8]} 10... O-O {[%clk 0:02:53.1]} 11. e4
{[%clk 0:02:54.4]} 11... f4 {[%clk 0:02:52.3]} 12. Nf3 {[%clk 0:02:52.5]} 12...
fxg3 {[%clk 0:02:51.4]} 13. hxg3 {[%clk 0:02:52]} 13... d6 {[%clk 0:02:52.3]}
14. Qd3 {[%clk 0:02:51.1]} 14... Nd7 {[%clk 0:02:50.7]} 15. Rh1 {[%clk
0:02:49.7]} 15... e5 {[%clk 0:02:46.4]} 16. Be3 {[%clk 0:02:36.9]} 16... Bf6
{[%clk 0:02:43.5]} 17. Rh3 {[%clk 0:02:34.2]} 17... Qe7 {[%clk 0:02:42.3]} 18.
Rah1 {[%clk 0:02:33.9]} 18... h6 {[%clk 0:02:42.6]} 19. g4 {[%clk 0:02:18.4]}
19... exd4 {[%clk 0:02:34.7]} 20. cxd4 {[%clk 0:02:16.1]} 20... c5 {[%clk
0:02:35.6]} 21. g5 {[%clk 0:01:59.6]} 21... Bxd4 {[%clk 0:02:33.5]} 22. gxh6
{[%clk 0:01:52.4]} 22... Bxe3 {[%clk 0:02:32]} 23. Qxe3 {[%clk 0:01:52.3]} 23...
g6 {[%clk 0:02:28.2]} 24. Rg3 {[%clk 0:01:34]} 24... Rf6 {[%clk 0:02:21.5]} 25.
Nh4 {[%clk 0:01:24]} 25... Kh7 {[%clk 0:02:04.3]} 26. Nf5 {[%clk 0:00:44.8]}
26... Qe5 {[%clk 0:01:54.8]} 27. Ng7 {[%clk 0:00:29.5]} 27... Raf8 {[%clk
0:01:51.4]} 28. f3 {[%clk 0:00:28.4]} 28... Qb2+ {[%clk 0:01:46.8]} 29. Qf2
{[%clk 0:00:27.9]} 29... Qxf2+ {[%clk 0:01:45.9]} 30. Kxf2 {[%clk 0:00:28.2]}
30... Ne5 {[%clk 0:01:46.4]} 31. Rhh3 {[%clk 0:00:28.4]} 31... Nxc4 {[%clk
0:01:45.6]} 32. Ke2 {[%clk 0:00:19.4]} 32... Ne5 {[%clk 0:01:40.3]} 33. Ke3
{[%clk 0:00:15.9]} 33... R8f7 {[%clk 0:01:34.5]} 34. Ne8 {[%clk 0:00:14.3]}
34... Re6 {[%clk 0:01:33.3]} 35. Ng7 {[%clk 0:00:14.4]} 35... Ree7 {[%clk
0:01:32.2]} 36. f4 {[%clk 0:00:14.8]} 36... Nc4+ {[%clk 0:01:30.8]} 37. Kd3
{[%clk 0:00:15.1]} 37... Nb2+ {[%clk 0:01:30]} 38. Kc2 {[%clk 0:00:15.4]} 38...
Nc4 {[%clk 0:01:28.5]} 39. Kd3 {[%clk 0:00:15.1]} 39... b5 {[%clk 0:01:28.8]}
40. f5 {[%clk 0:00:14.9]} 40... Ne5+ {[%clk 0:01:23.9]} 41. Kc2 {[%clk
0:00:14.6]} 41... c4 {[%clk 0:01:20.4]} 42. fxg6+ {[%clk 0:00:13.4]} 42... Nxg6
{[%clk 0:01:21.3]} 43. Nf5 {[%clk 0:00:13.8]} 43... Rxe4 {[%clk 0:01:19.6]} 44.
Nxd6 {[%clk 0:00:14]} 44... Rf2+ {[%clk 0:01:19.4]} 45. Kc3 {[%clk 0:00:14.2]}
45... Ree2 {[%clk 0:01:18.9]} 46. Rxg6 {[%clk 0:00:13.7]} 46... Rc2+ {[%clk
0:01:13.2]} 47. Kb4 {[%clk 0:00:13.7]} 47... Rb2+ {[%clk 0:01:13.1]} 48. Kc5
{[%clk 0:00:13.8]} 48... Kxg6 {[%clk 0:01:10.7]} 49. h7 {[%clk 0:00:14.1]} 49...
Rf8 {[%clk 0:01:10.9]} 50. h8=Q {[%clk 0:00:13.5]} 50... Rxh8 {[%clk 0:01:10.7]}
51. Rxh8 {[%clk 0:00:13.8]} 51... c3 {[%clk 0:01:11.1]} 52. Rh1 {[%clk
0:00:12.9]} 52... c2 {[%clk 0:01:09.6]} 53. Rc1 {[%clk 0:00:13.1]} 53... a6
{[%clk 0:01:09.1]} 54. Kd4 {[%clk 0:00:11.6]} 54... Rxa2 {[%clk 0:01:06.8]} 55.
Kc3 {[%clk 0:00:12]} 55... Kf6 {[%clk 0:01:05.2]} 56. Kb3 {[%clk 0:00:12.2]}
56... Ra4 {[%clk 0:01:03.4]} 57. Rxc2 {[%clk 0:00:12.5]} 57... Ke5 {[%clk
0:01:03.1]} 58. Nb7 {[%clk 0:00:11.8]} 58... Rh4 {[%clk 0:01:00.1]} 59. Rc5+
{[%clk 0:00:09.8]} 59... Kd4 {[%clk 0:00:57.9]} 60. Rc2 {[%clk 0:00:10.1]} 60...
Rh7 {[%clk 0:00:55.7]} 61. Nc5 {[%clk 0:00:09.9]} 61... a5 {[%clk 0:00:53.4]}
62. Kb2 {[%clk 0:00:09.9]} 62... a4 {[%clk 0:00:51.5]} 63. Ne6+ {[%clk
0:00:10.2]} 63... Kd3 {[%clk 0:00:46.8]} 64. Nf4+ {[%clk 0:00:08.4]} 64... Ke4
{[%clk 0:00:46]} 65. Ne2 {[%clk 0:00:08.6]} 65... Rh3 {[%clk 0:00:42.6]} 66. Nc1
{[%clk 0:00:08.3]} 66... Kd5 {[%clk 0:00:40.2]} 67. Rd2+ {[%clk 0:00:08]} 67...
Kc6 {[%clk 0:00:38.8]} 68. Nd3 {[%clk 0:00:07.6]} 68... Kb6 {[%clk 0:00:37.7]}
69. Ne5 {[%clk 0:00:07.7]} 69... b4 {[%clk 0:00:35.3]} 70. Rc2 {[%clk
0:00:07.8]} 70... Kb5 {[%clk 0:00:34.6]} 71. Nd7 {[%clk 0:00:07.3]} 71... a3+
{[%clk 0:00:33.9]} 72. Kb1 {[%clk 0:00:06.7]} 72... b3 {[%clk 0:00:33.5]} 73.
Rc1 {[%clk 0:00:07.2]} 73... a2+ {[%clk 0:00:30]} 74. Kb2 {[%clk 0:00:07.2]}
74... Kb4 {[%clk 0:00:29]} 75. Rc2 {[%clk 0:00:01.8]} 75... bxc2 {[%clk
0:00:26.9]} 0-1

[Event "Early-Titled-Tuesday-Blitz-January-23-2024"]
[Site "Chess.com"]
[Date "2024.01.23"]
[Round "1"]
[White "SirMittensofMittensville"]
[Black "dirk_da_player"]
[Result "1-0"]
[WhiteElo "2679"]
[BlackElo "2364"]
[TimeControl "180+1"]
[EndTime "8:08:53 PST"]
[Termination "SirMittensofMittensville won on time"]

1. e4 {[%clk 0:03:00.9]} 1... e5 {[%clk 0:02:59.4]} 2. Nf3 {[%clk 0:03:00.9]}
2... d6 {[%clk 0:02:59.2]} 3. d4 {[%clk 0:03:00.6]} 3... exd4 {[%clk 0:02:59.6]}
4. Nxd4 {[%clk 0:03:01.5]} 4... Nf6 {[%clk 0:02:59.6]} 5. Nc3 {[%clk 0:03:02.2]}
5... Be7 {[%clk 0:03:00.1]} 6. g3 {[%clk 0:03:01]} 6... d5 {[%clk 0:02:59.7]} 7.
e5 {[%clk 0:02:57.8]} 7... Ng4 {[%clk 0:02:56.9]} 8. Bg2 {[%clk 0:02:36.6]} 8...
c6 {[%clk 0:02:56.1]} 9. f4 {[%clk 0:02:31.2]} 9... O-O {[%clk 0:02:29.5]} 10.
h3 {[%clk 0:02:23.5]} 10... Nh6 {[%clk 0:02:28.6]} 11. g4 {[%clk 0:02:21.4]}
11... Bc5 {[%clk 0:01:24.1]} 12. O-O {[%clk 0:02:09.7]} 12... f6 {[%clk
0:01:18.2]} 13. exf6 {[%clk 0:02:02.8]} 13... Qxf6 {[%clk 0:01:16.5]} 14. Be3
{[%clk 0:02:03.3]} 14... Nf7 {[%clk 0:01:01.5]} 15. Qd2 {[%clk 0:02:01.4]} 15...
Nd6 {[%clk 0:00:59.6]} 16. b3 {[%clk 0:02:00.3]} 16... Nd7 {[%clk 0:00:45.5]}
17. Qd3 {[%clk 0:01:51.7]} 17... Qf7 {[%clk 0:00:38]} 18. Na4 {[%clk 0:01:48.1]}
18... Bb6 {[%clk 0:00:37.1]} 19. Nxb6 {[%clk 0:01:46.5]} 19... axb6 {[%clk
0:00:38]} 20. a4 {[%clk 0:01:46]} 20... Nf6 {[%clk 0:00:38]} 21. Rae1 {[%clk
0:01:41.3]} 21... Nfe4 {[%clk 0:00:37.1]} 22. f5 {[%clk 0:01:38.9]} 22... Bd7
{[%clk 0:00:37.2]} 23. Bf4 {[%clk 0:01:38.9]} 23... Rae8 {[%clk 0:00:36.6]} 24.
Nf3 {[%clk 0:01:37.3]} 24... Qf6 {[%clk 0:00:32.4]} 25. Re2 {[%clk 0:01:26.2]}
25... Nc3 {[%clk 0:00:23.2]} 26. Re5 {[%clk 0:01:18.2]} 26... Nde4 {[%clk
0:00:20.8]} 27. Re1 {[%clk 0:01:14.2]} 27... h6 {[%clk 0:00:16.4]} 28. Qd4
{[%clk 0:01:05.5]} 28... Qf7 {[%clk 0:00:14.8]} 29. Rxe8 {[%clk 0:01:00.3]}
29... Rxe8 {[%clk 0:00:14.8]} 30. Ne5 {[%clk 0:01:01]} 30... Qe7 {[%clk
0:00:13.7]} 31. Nxd7 {[%clk 0:00:51.9]} 31... Qxd7 {[%clk 0:00:13.9]} 32. Bxe4
{[%clk 0:00:51.3]} 32... Nxe4 {[%clk 0:00:14.3]} 33. c4 {[%clk 0:00:48.9]} 33...
Nf6 {[%clk 0:00:10.3]} 34. Re5 {[%clk 0:00:45.6]} 34... c5 {[%clk 0:00:09.6]}
35. Qe3 {[%clk 0:00:41.4]} 35... Rxe5 {[%clk 0:00:09.6]} 36. Bxe5 {[%clk
0:00:37.9]} 36... d4 {[%clk 0:00:10.2]} 37. Qf3 {[%clk 0:00:35.6]} 37... Qe7
{[%clk 0:00:10.5]} 38. Qf4 {[%clk 0:00:31.5]} 38... Nd7 {[%clk 0:00:10.4]} 39.
Bc7 {[%clk 0:00:25.4]} 39... Qe1+ {[%clk 0:00:10.9]} 40. Kg2 {[%clk 0:00:20.6]}
40... Qe2+ {[%clk 0:00:11.7]} 41. Qf2 {[%clk 0:00:21.1]} 41... Qe4+ {[%clk
0:00:11.8]} 42. Qf3 {[%clk 0:00:21.8]} 42... Qc2+ {[%clk 0:00:12.4]} 43. Kg3
{[%clk 0:00:21]} 43... Nf6 {[%clk 0:00:12.7]} 44. Be5 {[%clk 0:00:18.6]} 44...
Ne4+ {[%clk 0:00:13]} 45. Kh4 {[%clk 0:00:19.2]} 45... Nd2 {[%clk 0:00:12]} 46.
Qd5+ {[%clk 0:00:18]} 46... Kh7 {[%clk 0:00:12.2]} 47. Bf4 {[%clk 0:00:13.7]}
47... Ne4 {[%clk 0:00:09.2]} 48. Qe5 {[%clk 0:00:10.8]} 48... Qf2+ {[%clk
0:00:08.8]} 49. Bg3 {[%clk 0:00:11.5]} 49... Qxg3+ {[%clk 0:00:07.8]} 50. Qxg3
{[%clk 0:00:12.4]} 50... Nxg3 {[%clk 0:00:08.1]} 51. Kxg3 {[%clk 0:00:13.3]}
51... Kg8 {[%clk 0:00:08.6]} 52. Kf4 {[%clk 0:00:12.2]} 52... Kf7 {[%clk
0:00:09.5]} 53. Ke4 {[%clk 0:00:12.2]} 53... Ke7 {[%clk 0:00:10.2]} 54. h4
{[%clk 0:00:12.7]} 54... Kf6 {[%clk 0:00:10.4]} 55. Kf4 {[%clk 0:00:13.1]} 55...
g5+ {[%clk 0:00:11.2]} 56. hxg5+ {[%clk 0:00:11.1]} 56... hxg5+ {[%clk
0:00:12.1]} 57. Ke4 {[%clk 0:00:11.4]} 57... Ke7 {[%clk 0:00:12.4]} 58. Kd3
{[%clk 0:00:10.8]} 58... Kd6 {[%clk 0:00:12.6]} 59. b4 {[%clk 0:00:11]} 59...
Ke7 {[%clk 0:00:12.2]} 60. a5 {[%clk 0:00:10.7]} 60... bxa5 {[%clk 0:00:10.1]}
61. bxc5 {[%clk 0:00:10.8]} 61... a4 {[%clk 0:00:05.3]} 62. Kxd4 {[%clk
0:00:11.1]} 62... a3 {[%clk 0:00:06]} 63. Kc3 {[%clk 0:00:11.6]} 63... Kd7
{[%clk 0:00:06.7]} 64. Kb3 {[%clk 0:00:11.5]} 64... Kc6 {[%clk 0:00:07.6]} 65.
Kxa3 {[%clk 0:00:11.5]} 65... Kxc5 {[%clk 0:00:08.5]} 66. Kb3 {[%clk 0:00:12.1]}
66... Kd6 {[%clk 0:00:08.7]} 67. Kb4 {[%clk 0:00:12.4]} 1-0